lending/lending_fUSD_20250808
["ID","MTS","AMOUNT","RATE_DAILY","PERIOD"]
[377922914,1754613209031,-1222.43,0.00024109,2]
[377922915,1754613209041,-527.26,0.00024109,2]
[377922916,1754613209051,-1196.36,0.00024109,2]
[377922917,1754613209060,-2004.13,0.00024109,2]
[377922918,1754613209069,-444.47,0.00024109,2]
[377922919,1754613209079,-554.57,0.00024109,2]
[377922920,1754613209088,-1393.06,0.00024109,2]
[377922921,1754613209098,-1109.06,0.00024109,2]
[377922922,1754613209107,-624.86,0.00024109,2]
[377922923,1754613209117,-1290.07,0.00024109,2]
[377922924,1754613209126,-2031.25,0.00024109,2]
[377922925,1754613209136,-469.16,0.00024109,2]
[377922926,1754613209145,-1460.91,0.00024109,2]
[377922927,1754613209155,-2043.58,0.00024109,2]
[377922928,1754613209164,-1164.41,0.00024109,2]
[377922929,1754613209174,-2666.29,0.00024109,2]
[377922930,1754613209187,-2592.74,0.00024109,2]
[377922931,1754613209197,-1333.93,0.00024109,2]
[377922932,1754613209207,-694.8,0.00024109,2]
[377922933,1754613209215,-750.53,0.00024109,2]
[377922934,1754613209225,-631.92,0.00024109,2]
[377922935,1754613209234,-1164.69,0.00024109,2]
[377922936,1754613209244,-2811.47,0.00024109,2]
[377922937,1754613209254,-518.35,0.00024109,2]
[377922938,1754613209263,-465.25,0.00024109,2]
[377922939,1754613209272,-543.99,0.00024109,2]
[377922940,1754613209283,-1133.55,0.00024109,2]
[377922941,1754613209293,-1818.01,0.00024109,2]
[377922942,1754613209302,-680.98,0.00024109,2]
[377922943,1754613209311,-1288.12,0.00024109,2]
[377922944,1754613209320,-4407.12,0.00024109,2]
[377922945,1754613209329,-1275.65,0.00024109,2]
[377922946,1754613209339,-961.95,0.00024109,2]
[377922947,1754613209347,-453.21,0.00024109,2]
[377922948,1754613209356,-400.0,0.00024109,2]
[377922949,1754613209365,-1714.38,0.00024109,2]
[377922950,1754613209375,-879.97,0.00024109,2]
[377922951,1754613209384,-400.0,0.00024109,2]
[377922952,1754613209393,-1117.23,0.00024109,2]
[377922953,1754613209401,-1989.79,0.00024109,2]
[377922954,1754613209410,-1604.94,0.00024109,2]
[377922955,1754613209420,-1383.67,0.00024109,2]
[377922956,1754613209428,-633.58,0.00024109,2]
[377922957,1754613209442,-1105.6,0.00024109,2]
[377922958,1754613209450,-426.59,0.00024109,2]
[377922959,1754613209461,-446.1,0.00024109,2]
[377922960,1754613209470,-1061.62,0.00024109,2]
[377922961,1754613209479,-2286.48,0.00024109,2]
[377922962,1754613209488,-1419.58,0.00024109,2]
[377922963,1754613209497,-608.07,0.00024109,2]
[377922964,1754613209507,-1349.34,0.00024109,2]
[377922965,1754613209518,-1214.9,0.00024109,2]
[377922966,1754613209527,-994.63,0.00024109,2]
[377922967,1754613209537,-2503.56,0.00024109,2]
[377922968,1754613209547,-668.68,0.00024109,2]
[377922969,1754613209557,-2034.76,0.00024109,2]
[377922970,1754613209567,-578.7,0.00024109,2]
[377922971,1754613209577,-1646.26,0.00024109,2]
[377922972,1754613209587,-400.0,0.00024109,2]
[377922973,1754613209597,-1276.94,0.00024109,2]
[377922974,1754613209606,-1889.62,0.00024109,2]
[377922975,1754613209616,-1501.0,0.00024109,2]
[377922976,1754613209626,-1528.92,0.00024109,2]
[377922977,1754613209636,-1025.64,0.00024109,2]
[377922978,1754613209647,-2128.65,0.00024109,2]
[377922979,1754613209656,-547.41,0.00024109,2]
[377922980,1754613209666,-1086.24,0.00024109,2]
[377922981,1754613209675,-400.0,0.00024109,2]
[377922982,1754613209686,-607.0,0.00024109,2]
[377922983,1754613209696,-1492.79,0.00024109,2]
[377922984,1754613209705,-1345.75,0.00024109,2]
[377922985,1754613209715,-420.32,0.00024109,2]
[377922986,1754613209724,-1120.37,0.00024109,2]
[377922987,1754613209734,-489.48,0.00024109,2]
[377922988,1754613209743,-1434.86,0.00024109,2]
[377922989,1754613209753,-1951.53,0.00024109,2]
[377922990,1754613209762,-2325.69,0.00024109,2]
[377922991,1754613209771,-1065.9,0.00024109,2]
[377922992,1754613209780,-917.26,0.00024109,2]
[377922993,1754613209790,-400.0,0.00024109,2]
[377922994,1754613209799,-1376.02,0.00024109,2]
[377922995,1754613209808,-1151.09,0.00024109,2]
[377922996,1754613209818,-400.0,0.00024109,2]
[377922997,1754613209827,-1350.78,0.00024109,2]
[377922998,1754613209837,-1657.63,0.00024109,2]
[377922999,1754613209847,-1848.96,0.00024109,2]
[377923000,1754613209856,-230.31915156,0.00024109,2]
[377923001,1754613209865,-1409.09,0.00024109,2]
[377923002,1754613209876,-451.49,0.00024109,2]
[377923003,1754613209886,-400.10384116,0.00024109,2]
[377923004,1754613209898,-2074.91,0.00024109,2]
[377923005,1754613209907,-608.66,0.00024109,2]
[377923006,1754613209916,-2222.15,0.00024109,2]
[377923007,1754613209926,-1588.59,0.00024109,2]
[377923008,1754613209939,-326.0123096,0.00024109,2]
[377923009,1754613209948,-1826.78,0.00024109,2]
[377923010,1754613209958,-880.06,0.00024109,2]
[377923011,1754613209969,-1481.84,0.00024109,2]
[377923012,1754613209980,-1400.02,0.00024109,2]
[377923013,1754613209990,-1119.1,0.00024109,2]
[377923014,1754613210000,-1688.74,0.00024109,2]
[377923015,1754613210009,-2547.87,0.00024109,2]
[377923016,1754613210019,-1345.58,0.00024109,2]
[377923017,1754613210029,-1888.11,0.00024109,2]
[377923018,1754613210038,-1803.23,0.00024109,2]
[377923019,1754613210049,-3068.61,0.00024109,2]
[377923020,1754613210059,-846.92,0.00024109,2]
[377923021,1754613210069,-3553.23,0.00024109,2]
[377923022,1754613210078,-1278.15,0.00024109,2]
[377923023,1754613210087,-2016.9,0.00024109,2]
[377923024,1754613210097,-2027.95,0.00024109,2]
[377923025,1754613210107,-1218.73,0.00024109,2]
[377923026,1754613210119,-1857.98,0.00024109,2]
[377923027,1754613210129,-1934.76,0.00024109,2]
[377923028,1754613210138,-633.24,0.00024109,2]
[377923029,1754613210148,-2106.04,0.00024109,2]
[377923030,1754613210159,-1410.86,0.00024109,2]
[377923031,1754613210169,-881.02,0.00024109,2]
[377923032,1754613210179,-1461.11,0.00024109,2]
[377923033,1754613210190,-2341.65,0.00024109,2]
[377923034,1754613210199,-400.0,0.00024109,2]
[377923035,1754613210208,-1720.55,0.00024109,2]
[377923036,1754613210218,-400.0,0.00024109,2]
[377923037,1754613210228,-1452.03,0.00024109,2]
[377923038,1754613210238,-1620.97,0.00024109,2]
[377923039,1754613210247,-496.68,0.00024109,2]
[377923040,1754613210258,-634.15,0.00024109,2]
[377923041,1754613210269,-558.88,0.00024109,2]
[377923042,1754613210278,-1617.17,0.00024109,2]
[377923043,1754613210287,-2144.18,0.00024109,2]
[377923044,1754613210296,-2615.62,0.00024109,2]
[377923045,1754613210306,-2107.78,0.00024109,2]
[377923046,1754613210315,-749.36,0.00024109,2]
[377923047,1754613210325,-1657.01,0.00024109,2]
[377923048,1754613210334,-1646.42,0.00024109,2]
[377923049,1754613210343,-1193.46,0.00024109,2]
[377923050,1754613210353,-2388.63,0.00024109,2]
[377923051,1754613210362,-400.0,0.00024109,2]
[377923052,1754613210372,-1288.88,0.00024109,2]
[377923053,1754613210382,-2311.16,0.00024109,2]
[377923054,1754613210391,-2350.74,0.00024109,2]
[377923055,1754613210401,-1822.62,0.00024109,2]
[377923056,1754613210410,-612.27,0.00024109,2]
[377923057,1754613210421,-1810.11,0.00024109,2]
[377923058,1754613210433,-1537.46,0.00024109,2]
[377923059,1754613210444,-1369.16,0.00024109,2]
[377923060,1754613210454,-511.54,0.00024109,2]
[377923061,1754613210463,-482.95,0.00024109,2]
[377923062,1754613210473,-2136.59,0.00024109,2]
[377923063,1754613210482,-400.0,0.00024109,2]
[377923064,1754613210493,-1248.2,0.00024109,2]
[377923065,1754613210502,-1594.51,0.00024109,2]
[377923066,1754613210511,-1205.01,0.00024109,2]
[377923067,1754613210521,-483.64,0.00024109,2]
[377923068,1754613210530,-1678.28,0.00024109,2]
[377923069,1754613210539,-893.25,0.00024109,2]
[377923070,1754613210548,-5670.63,0.00024109,2]
[377923071,1754613210558,-845.84,0.00024109,2]
[377923072,1754613210567,-1256.8,0.00024109,2]
[377923073,1754613210576,-2578.27,0.00024109,2]
[377923074,1754613210585,-1440.32,0.00024109,2]
[377923075,1754613210594,-663.05,0.00024109,2]
[377923076,1754613210603,-738.95,0.00024109,2]
[377923077,1754613210613,-575.03,0.00024109,2]
[377923078,1754613210622,-2047.45,0.00024109,2]
[377923079,1754613210632,-2097.6,0.00024109,2]
[377923080,1754613210642,-500.07,0.00024109,2]
[377923081,1754613210652,-1244.17,0.00024109,2]
[377923082,1754613210661,-422.96,0.00024109,2]
[377923083,1754613210670,-759.15,0.00024109,2]
[377923084,1754613210679,-1757.73,0.00024109,2]
[377923085,1754613210693,-1316.97,0.00024109,2]
[377923086,1754613210703,-1321.01,0.00024109,2]
[377923087,1754613210713,-454.26,0.00024109,2]
[377923088,1754613210722,-3377.08,0.00024109,2]
[377923089,1754613210731,-1895.55,0.00024109,2]
[377923090,1754613210741,-1208.59,0.00024109,2]
[377923091,1754613210752,-1065.6,0.00024109,2]
[377923092,1754613210763,-2465.13,0.00024109,2]
[377923093,1754613210776,-671.01,0.00024109,2]
[377923094,1754613210787,-2359.49,0.00024109,2]
[377923095,1754613210798,-1206.78,0.00024109,2]
[377923096,1754613210809,-930.4,0.00024109,2]
[377923097,1754613210819,-916.62,0.00024109,2]
[377923098,1754613210829,-1926.69,0.00024109,2]
[377923099,1754613210838,-1712.73,0.00024109,2]
[377923100,1754613210848,-831.18,0.00024109,2]
[377923101,1754613210858,-1982.51,0.00024109,2]
[377923102,1754613210867,-458.34,0.00024109,2]
[377923103,1754613210882,-1225.08,0.00024109,2]
[377923104,1754613210892,-1138.89,0.00024109,2]
[377923105,1754613210901,-1259.99,0.00024109,2]
[377923106,1754613210911,-2026.14,0.00024109,2]
[377923107,1754613210922,-785.6,0.00024109,2]
[377923108,1754613210931,-821.3,0.00024109,2]
[377923109,1754613210943,-1205.32,0.00024109,2]
[377923110,1754613210952,-517.59,0.00024109,2]
[377923111,1754613210962,-720.69,0.00024109,2]
[377923112,1754613210971,-1444.0,0.00024109,2]
[377923113,1754613210981,-2627.0,0.00024109,2]
[377923114,1754613210991,-1785.88,0.00024109,2]
[377923115,1754613211001,-1835.44,0.00024109,2]
[377923116,1754613211011,-1057.29,0.00024109,2]
[377923117,1754613211020,-594.32,0.00024109,2]
[377923118,1754613211030,-737.52,0.00024109,2]
[377923119,1754613211040,-760.17,0.00024109,2]
[377923120,1754613211050,-782.04,0.00024109,2]
[377923121,1754613211060,-1256.19,0.00024109,2]
[377923122,1754613211069,-1213.52,0.00024109,2]
[377923123,1754613211079,-1326.52,0.00024109,2]
[377923124,1754613211089,-2043.3,0.00024109,2]
[377923125,1754613211098,-400.0,0.00024109,2]
[377923126,1754613211107,-2287.32,0.00024109,2]
[377923127,1754613211117,-1429.55,0.00024109,2]
[377923128,1754613211126,-1328.2,0.00024109,2]
[377923129,1754613211137,-1087.69,0.00024109,2]
[377923130,1754613211147,-718.93,0.00024109,2]
[377923131,1754613211157,-400.0,0.00024109,2]
[377923132,1754613211166,-2952.54,0.00024109,2]
[377923133,1754613211175,-1291.71,0.00024109,2]
[377923134,1754613211188,-507.81,0.00024109,2]
[377923135,1754613211197,-1573.48,0.00024109,2]
[377923136,1754613211207,-2109.97,0.00024109,2]
[377923137,1754613211216,-1129.91,0.00024109,2]
[377923138,1754613211225,-1998.91,0.00024109,2]
[377923139,1754613211234,-662.71,0.00024109,2]
[377923140,1754613211243,-921.79,0.00024109,2]
[377923141,1754613211253,-2405.69,0.00024109,2]
[377923142,1754613211262,-1164.62,0.00024109,2]
[377923143,1754613211271,-620.84,0.00024109,2]
[377923144,1754613211281,-1425.93,0.00024109,2]
[377923145,1754613211291,-780.96,0.00024109,2]
[377923146,1754613211301,-1165.14,0.00024109,2]
[377923147,1754613211311,-918.26,0.00024109,2]
[377923148,1754613211321,-2947.95,0.00024109,2]
[377923149,1754613211330,-1258.15,0.00024109,2]
[377923150,1754613211339,-876.19,0.00024109,2]
[377923151,1754613211349,-478.79,0.00024109,2]
[377923152,1754613211360,-599.75,0.00024109,2]
[377923153,1754613211370,-1217.16,0.00024109,2]
[377923154,1754613211380,-2199.42,0.00024109,2]
[377923155,1754613211390,-21934.36,0.00024109,2]
[377923156,1754613211399,-1553.23,0.00024109,2]
[377923157,1754613211409,-2212.98,0.00024109,2]
[377923158,1754613211421,-1718.94,0.00024109,2]
[377923159,1754613211430,-1128.21,0.00024109,2]
[377923160,1754613211442,-400.0,0.00024109,2]
[377923161,1754613211452,-454.14,0.00024109,2]
[377923162,1754613211461,-913.11,0.00024109,2]
[377923163,1754613211471,-484.16,0.00024109,2]
[377923164,1754613211480,-2805.22,0.00024109,2]
[377923165,1754613211490,-1717.22,0.00024109,2]
[377923166,1754613211500,-674.02,0.00024109,2]
[377923167,1754613211511,-3589.91,0.00024109,2]
[377923168,1754613211520,-445.14,0.00024109,2]
[377923169,1754613211530,-1638.11,0.00024109,2]
[377923170,1754613211539,-2525.21,0.00024109,2]
[377923171,1754613211549,-1662.56,0.00024109,2]
[377923172,1754613211559,-400.0,0.00024109,2]
[377923173,1754613211569,-1890.31,0.00024109,2]
[377923174,1754613211578,-820.59,0.00024109,2]
[377923175,1754613211588,-600.51,0.00024109,2]
[377923176,1754613211598,-1179.5,0.00024109,2]
[377923177,1754613211608,-674.63,0.00024109,2]
[377923178,1754613211618,-2338.84,0.00024109,2]
[377923179,1754613211628,-2335.94,0.00024109,2]
[377923180,1754613211639,-1234.92,0.00024109,2]
[377923181,1754613211648,-1814.44,0.00024109,2]
[377923182,1754613211658,-862.72,0.00024109,2]
[377923183,1754613211668,-5688.95,0.00024109,2]
[377923184,1754613211678,-1880.9,0.00024109,2]
[377923185,1754613211692,-1651.16,0.00024109,2]
[377923186,1754613211701,-400.0,0.00024109,2]
[377923187,1754613211711,-480.51,0.00024109,2]
[377923188,1754613211721,-374.0,0.0002411,7]
[377923189,1754613211731,-637.67,0.00024139,2]
[377923190,1754613211741,-374.0,0.00024164,7]
[377923191,1754613211751,-3611.38857396,0.0002421,2]
[377923192,1754613211762,-412.17421734,0.0002421,2]
[377923193,1754613211772,-1770.72,0.0002437,2]
[377923194,1754613211782,-2033.74,0.0002437,2]
[377923195,1754613211792,-1928.95,0.0002437,2]
[377923196,1754613211802,-1964.46,0.0002437,2]
[377923197,1754613211812,-1517.59,0.0002437,2]
[377923198,1754613211822,-2517.35,0.0002437,2]
[377923199,1754613211832,-413.9,0.00024383,2]
[377923200,1754613211842,-491.72,0.00024383,2]
[377923201,1754613211852,-1398.87,0.00024383,2]
[377923202,1754613211862,-1031.25,0.00024383,2]
[377923203,1754613211874,-984.93,0.00024383,2]
[377923204,1754613211883,-565.33,0.00024383,2]
[377923205,1754613211897,-1073.05,0.00024383,2]
[377923206,1754613211907,-1178.77,0.00024383,2]
[377923207,1754613211918,-828.34,0.00024383,2]
[377923208,1754613211928,-812.28,0.00024383,2]
[377923209,1754613211940,-927.28,0.00024383,2]
[377923210,1754613211950,-953.96,0.00024383,2]
[377923211,1754613211960,-861.71,0.00024383,2]
[377923212,1754613211970,-802.6,0.00024383,2]
[377923213,1754613211981,-580.75,0.00024383,2]
[377923214,1754613211991,-400.0,0.00024383,2]
[377923215,1754613212001,-571.8,0.00024383,2]
[377923216,1754613212010,-400.0,0.00024383,2]
[377923217,1754613212021,-1017.49,0.00024383,2]
[377923218,1754613212031,-480.71,0.00024383,2]
[377923219,1754613212042,-403.89,0.00024383,2]
[377923220,1754613212053,-400.0,0.00024383,2]
[377923221,1754613212065,-1379.73,0.00024383,2]
[377923222,1754613212075,-1290.36,0.00024383,2]
[377923223,1754613212085,-431.62965789,0.00024383,2]
[377923224,1754613212095,-560.12,0.00024383,2]
[377923225,1754613212105,-1326.45,0.00024383,2]
[377923226,1754613212115,-1037.58,0.00024383,2]
[377923227,1754613212125,-570.53,0.00024383,2]
[377923228,1754613212135,-551.88,0.00024383,2]
[377923229,1754613212145,-624.79,0.00024383,2]
[377923230,1754613212156,-459.48,0.00024383,2]
[377923231,1754613212166,-912.6,0.00024383,2]
[377923232,1754613212176,-453.86,0.00024383,2]
[377923233,1754613212190,-845.43,0.00024383,2]
[377923234,1754613212200,-610.33,0.00024383,2]
[377923235,1754613212210,-1543.29,0.00024383,2]
[377923236,1754613212219,-802.15,0.00024383,2]
[377923237,1754613212229,-405.06,0.00024383,2]
[377923238,1754613212239,-400.0,0.00024383,2]
[377923239,1754613212249,-1052.0,0.00024383,2]
[377923240,1754613212259,-400.0,0.00024383,2]
[377923241,1754613212269,-950.22,0.00024383,2]
[377923242,1754613212279,-903.46,0.00024383,2]
[377923243,1754613212290,-1188.56,0.00024383,2]
[377923244,1754613212300,-400.0,0.00024383,2]
[377923245,1754613212310,-1340.86,0.00024383,2]
[377923246,1754613212321,-511.85,0.00024383,2]
[377923247,1754613212331,-502.43,0.00024383,2]
[377923248,1754613212341,-538.68,0.00024383,2]
[377923249,1754613212352,-469.08,0.00024383,2]
[377923250,1754613212362,-431.81,0.00024383,2]
[377923251,1754613212371,-415.03,0.00024383,2]
[377923252,1754613212381,-400.0,0.00024383,2]
[377923253,1754613212391,-360.14127959,0.00024383,2]
[377923254,1754613212401,-652.84,0.00024383,2]
[377923255,1754613212411,-448.34,0.00024383,2]
[377923256,1754613212420,-613.1,0.00024383,2]
[377923257,1754613212430,-400.0,0.00024383,2]
[377923258,1754613212443,-468.72,0.00024383,2]
[377923259,1754613212453,-560.03,0.00024383,2]
[377923260,1754613212464,-1054.59,0.00024383,2]
[377923261,1754613212474,-606.31,0.00024383,2]
[377923262,1754613212484,-1129.63,0.00024383,2]
[377923263,1754613212494,-744.37,0.00024383,2]
[377923264,1754613212507,-771.07,0.00024383,2]
[377923265,1754613212517,-1372.41,0.00024383,2]
[377923266,1754613212527,-830.78,0.00024383,2]
[377923267,1754613212538,-463.32,0.00024383,2]
[377923268,1754613212547,-1290.29,0.00024383,2]
[377923269,1754613212558,-643.55,0.00024383,2]
[377923270,1754613212568,-261.55849014,0.00024383,2]
[377923271,1754613212578,-400.0,0.00024383,2]
[377923272,1754613212588,-792.51,0.00024383,2]
[377923273,1754613212598,-720.13,0.00024383,2]
[377923274,1754613212608,-526.14,0.00024383,2]
[377923275,1754613212619,-690.34,0.00024383,2]
[377923276,1754613212629,-767.24,0.00024383,2]
[377923277,1754613212639,-784.03,0.00024383,2]
[377923278,1754613212650,-592.46,0.00024383,2]
[377923279,1754613212660,-838.34,0.00024383,2]
[377923280,1754613212670,-619.45,0.00024383,2]
[377923281,1754613212680,-400.0,0.00024383,2]
[377923282,1754613212693,-400.0,0.00024383,2]
[377923283,1754613212703,-430.58,0.00024383,2]
[377923284,1754613212713,-400.0,0.00024383,2]
[377923285,1754613212723,-400.0,0.00024383,2]
[377923286,1754613212734,-887.56,0.00024383,2]
[377923287,1754613212744,-1398.35,0.00024383,2]
[377923288,1754613212754,-1137.31,0.00024383,2]
[377923289,1754613212764,-488.07,0.00024383,2]
[377923290,1754613212775,-433.15,0.00024383,2]
[377923291,1754613212785,-1086.27,0.00024383,2]
[377923292,1754613212796,-711.54,0.00024383,2]
[377923293,1754613212806,-969.77,0.00024383,2]
[377923294,1754613212816,-644.96,0.00024383,2]
[377923295,1754613212827,-615.2,0.00024383,2]
[377923296,1754613212837,-580.71,0.00024383,2]
[377923297,1754613212848,-1326.15,0.00024383,2]
[377923298,1754613212858,-745.61,0.00024383,2]
[377923299,1754613212869,-777.93,0.00024383,2]
[377923300,1754613212881,-533.67,0.00024383,2]
[377923301,1754613212892,-400.0,0.00024383,2]
[377923302,1754613212903,-1146.04,0.00024383,2]
[377923303,1754613212914,-678.35,0.00024383,2]
[377923304,1754613212927,-1764.53,0.00024383,2]
[377923305,1754613212939,-400.0,0.00024383,2]
[377923306,1754613212949,-400.0,0.00024383,2]
[377923307,1754613212960,-595.92,0.00024383,2]
[377923308,1754613212971,-1128.98,0.00024383,2]
[377923309,1754613212982,-1058.02,0.00024383,2]
[377923310,1754613212993,-467.91,0.00024383,2]
[377923311,1754613213003,-460.25,0.00024383,2]
[377923312,1754613213014,-684.85,0.00024383,2]
[377923313,1754613213024,-1822.08,0.00024383,2]
[377923314,1754613213035,-519.11,0.00024383,2]
[377923315,1754613213045,-834.5,0.00024383,2]
[377923316,1754613213055,-498.62,0.00024383,2]
[377923317,1754613213065,-211.70170143,0.00024383,2]
[377923318,1754613213077,-431.49,0.00024383,2]
[377923319,1754613213087,-332.52069953,0.00024383,2]
[377923320,1754613213098,-756.51,0.00024383,2]
[377923321,1754613213108,-753.02,0.00024383,2]
[377923322,1754613213119,-400.0,0.00024383,2]
[377923323,1754613213129,-474.3,0.00024383,2]
[377923324,1754613213139,-1312.14,0.00024383,2]
[377923325,1754613213150,-530.37,0.00024383,2]
[377923326,1754613213160,-488.75,0.00024383,2]
[377923327,1754613213171,-664.1,0.00024383,2]
[377923328,1754613213182,-753.14,0.00024383,2]
[377923329,1754613213193,-723.03,0.00024383,2]
[377923330,1754613213204,-481.93,0.00024383,2]
[377923331,1754613213215,-681.29,0.00024383,2]
[377923332,1754613213225,-1362.2,0.00024383,2]
[377923333,1754613213236,-1202.92,0.00024383,2]
[377923334,1754613213246,-349.49438992,0.00024383,2]
[377923335,1754613213257,-908.09,0.00024383,2]
[377923336,1754613213268,-400.0,0.00024383,2]
[377923337,1754613213279,-1356.82,0.00024383,2]
[377923338,1754613213289,-642.93,0.00024383,2]
[377923339,1754613213299,-558.14,0.00024383,2]
[377923340,1754613213310,-857.38,0.00024383,2]
[377923341,1754613213319,-600.87,0.00024383,2]
[377923342,1754613213330,-1113.28,0.00024383,2]
[377923343,1754613213340,-766.74,0.00024383,2]
[377923344,1754613213351,-473.3,0.00024383,2]
[377923345,1754613213361,-1063.89,0.00024383,2]
[377923346,1754613213372,-702.23,0.00024383,2]
[377923347,1754613213382,-697.81,0.00024383,2]
[377923348,1754613213392,-835.59,0.00024383,2]
[377923349,1754613213403,-593.88,0.00024383,2]
[377923350,1754613213413,-787.56,0.00024383,2]
[377923351,1754613213423,-1070.57,0.00024383,2]
[377923352,1754613213434,-714.37,0.00024383,2]
[377923353,1754613213445,-565.06,0.00024383,2]
[377923354,1754613213456,-805.74,0.00024383,2]
[377923355,1754613213473,-1013.85,0.00024383,2]
[377923356,1754613213483,-446.94,0.00024383,2]
[377923357,1754613213494,-518.84,0.00024383,2]
[377923358,1754613213505,-634.1,0.00024383,2]
[377923359,1754613213515,-668.96,0.00024383,2]
[377923360,1754613213526,-997.03,0.00024383,2]
[377923361,1754613213536,-1310.15,0.00024383,2]
[377923362,1754613213546,-539.85,0.00024383,2]
[377923363,1754613213556,-823.13,0.00024383,2]
[377923364,1754613213567,-602.12,0.00024383,2]
[377923365,1754613213577,-542.82,0.00024383,2]
[377923366,1754613213588,-1520.38,0.00024383,2]
[377923367,1754613213599,-1166.4,0.00024383,2]
[377923368,1754613213610,-400.0,0.00024383,2]
[377923369,1754613213620,-677.81,0.00024383,2]
[377923370,1754613213631,-400.0,0.00024383,2]
[377923371,1754613213642,-1322.15,0.00024383,2]
[377923372,1754613213653,-400.0,0.00024383,2]
[377923373,1754613213664,-400.0,0.00024383,2]
[377923374,1754613213674,-439.53,0.00024383,2]
[377923375,1754613213688,-729.31,0.00024383,2]
[377923376,1754613213699,-455.12,0.00024383,2]
[377923377,1754613214039,-1225.17,0.00024383,2]
[377923378,1754613214052,-440.74,0.00024383,2]
[377923379,1754613214062,-400.0,0.00024383,2]
[377923380,1754613214072,-1460.14,0.00024383,2]
[377923381,1754613214082,-400.0,0.00024383,2]
[377923382,1754613214092,-535.87,0.00024383,2]
[377923383,1754613214102,-400.0,0.00024383,2]
[377923384,1754613214112,-965.56,0.00024383,2]
[377923385,1754613214122,-400.0,0.00024383,2]
[377923386,1754613214132,-473.14,0.00024383,2]
[377923387,1754613214142,-1112.82,0.00024383,2]
[377923388,1754613214153,-592.4,0.00024383,2]
[377923389,1754613214163,-1239.98,0.00024383,2]
[377923390,1754613214173,-546.56,0.00024383,2]
[377923391,1754613214183,-412.93,0.00024383,2]
[377923392,1754613214196,-1332.23,0.00024383,2]
[377923393,1754613214207,-1121.49,0.00024383,2]
[377923394,1754613214217,-1921.83,0.00024383,2]
[377923395,1754613214228,-477.33,0.00024383,2]
[377923396,1754613214238,-2373.45,0.00024383,2]
[377923397,1754613214249,-867.66,0.00024383,2]
[377923398,1754613214259,-434.62,0.00024383,2]
[377923399,1754613214270,-586.09,0.00024383,2]
[377923400,1754613214280,-633.66,0.00024383,2]
[377923401,1754613214290,-1031.22,0.00024383,2]
[377923402,1754613214300,-591.29,0.00024383,2]
[377923403,1754613214310,-1239.8,0.00024383,2]
[377923404,1754613214320,-433.91,0.00024383,2]
[377923405,1754613214331,-765.3,0.00024383,2]
[377923406,1754613214340,-1091.91,0.00024383,2]
[377923407,1754613214350,-718.67,0.00024383,2]
[377923408,1754613214360,-400.0,0.00024383,2]
[377923409,1754613214371,-942.73,0.00024383,2]
[377923410,1754613214381,-655.59,0.00024383,2]
[377923411,1754613214391,-549.44,0.00024383,2]
[377923412,1754613214401,-706.48,0.00024383,2]
[377923413,1754613214411,-798.23,0.00024383,2]